bitfinex-derivatives/quotes_SOLF0:USTF0_20241017
["timestamp","ask_amount","ask_price","bid_price","bid_amount"]
[1729142220274,3.2542,153.67,153.66,4.7341613]
[1729142220590,3.2538,153.69,153.66,13.7541613]
[1729142220775,3.2538,153.69,153.68,9.02]
[1729142222676,4.92,153.71,153.66,4.7341613]
[1729142222876,9.02,153.69,153.63,9.02]
[1729142223285,3.2545,153.66,153.63,12.2749]
[1729142223480,3.2545,153.66,153.65,9.02]
[1729142223682,6.2945,153.71,153.65,9.02]
[1729142223879,6.2945,153.71,153.67,9.02]
[1729142223880,3.2539,153.69,153.67,9.02]
[1729142224388,3.2539,153.69,153.67,12.34021865]
[1729142225686,3.254,153.68,153.67,12.34021865]
[1729142232191,3.254,153.68,153.67,3.32021865]
[1729142232398,3.2549,153.64,153.61,3.2553]
[1729142232598,3.2549,153.64,153.63,9.02]
[1729142232798,3.2549,153.64,153.63,12.32958582]
[1729142235805,3.2549,153.64,153.63,3.30958582]
[1729142236006,3.2549,153.64,153.62,9.02]
[1729142236500,3.2549,153.64,153.62,12.33076792]
[1729142237104,3.2545,153.66,153.63,12.2749]
[1729142237302,4.92,153.68,153.65,9.02]
[1729142238000,3.2544,153.66,153.65,9.02]
[1729142238202,3.2544,153.66,153.65,12.22755589]
[1729142242408,3.2544,153.66,153.65,3.20755589]
[1729142242607,4.92,153.69,153.63,12.2749]
[1729142242803,3.2546,153.65,153.63,12.2749]
[1729142243107,3.2546,153.65,153.63,15.5301082]
[1729142246506,4.92,153.69,153.63,12.2752082]
[1729142246705,3.2543,153.67,153.65,12.2746]
[1729142247608,3.2543,153.67,153.66,3.321844]
[1729142250107,3.254,153.68,153.66,3.2544]
[1729142250309,3.254,153.68,153.66,12.2744]
[1729142250611,13.88,153.72,153.66,12.2744]
[1729142250807,9.02,153.72,153.66,12.2744]
[1729142251202,9.02,153.72,153.66,15.48295721]
[1729142251401,3.2539,153.69,153.66,15.48295721]
[1729142252006,3.2541,153.68,153.66,12.22855721]
[1729142254612,3.2541,153.68,153.66,15.48285721]
[1729142255006,13.88,153.73,153.66,12.22855721]
[1729142255310,3.2542,153.67,153.66,12.22855721]
[1729142257017,9.02,153.72,153.66,12.22855721]
[1729142257018,3.2541,153.68,153.66,12.22855721]
[1729142258533,3.2541,153.68,153.66,15.48285721]
[1729142265029,3.2537,153.7,153.67,3.254]
[1729142265224,13.88,153.73,153.68,9.02]
[1729142266431,13.88,153.73,153.68,12.2739]
[1729142266432,3.2536,153.7,153.68,12.2739]
[1729142268131,3.2536,153.7,153.69,9.02]
[1729142269636,3.2533,153.72,153.67,10.3927]
[1729142269827,13.88,153.73,153.67,10.3927]
[1729142271431,3.254,153.68,153.67,10.3927]
[1729142274741,3.2539,153.69,153.67,10.3927]
[1729142274949,3.2539,153.69,153.67,1.3727]
[1729142275151,3.2539,153.69,153.68,9.02]
[1729142280849,3.2539,153.69,153.31,3.01596539]
[1729142280850,84.62,153.69,153.31,3.01596539]
[1729142281051,35.18613373,153.68,153.38,9.02]
[1729142281248,9.02,153.45,153.38,3.22864878]
[1729142281449,9.02,153.44,153.38,9.02]
[1729142281644,5.62,153.45,153.38,3.18536146]
[1729142281645,9.02,153.42,153.38,3.18536146]
[1729142281848,3.2597,153.42,153.36,9.02]
[1729142282153,3.2597,153.42,153.32,3.2616]
[1729142282154,9.02,153.44,153.37,9.02]
[1729142282353,3.2601,153.39,153.29,9.14221692]
[1729142282555,70.3,153.53,153.38,9.02]
[1729142282855,9.02,153.48,153.42,9.02]
[1729142283056,14.98,153.47,153.42,9.02]
[1729142283251,14.98,153.47,153.41,9.02]
[1729142283554,14.98,153.47,153.42,3.20226333]
[1729142283943,5.96,153.47,153.42,3.20226333]
[1729142284254,5.96,153.47,153.39,14.08]
[1729142284554,3.2591,153.44,153.39,14.08]
[1729142284756,3.2591,153.44,153.39,17.37812581]
[1729142286352,3.2594,153.43,153.39,17.37812581]
[1729142288757,3.2598,153.41,153.39,3.29812581]
[1729142288950,3.2598,153.41,153.37,14.08]
[1729142289354,3.2601,153.39,153.37,3.1974836]
[1729142289655,3.2601,153.39,153.36,1.3957]
[1729142290651,14.08,153.45,153.36,1.3957]
[1729142291057,3.2599,153.4,153.36,1.3957]
[1729142291660,5.96,153.47,153.24,33.62]
[1729142291661,20.04,153.43,153.24,14.08]
[1729142291856,14.08,153.41,153.31,14.08]
[1729142292060,5.96,153.43,153.31,14.08]
[1729142292061,14.08,153.39,153.31,5.96]
[1729142292554,14.08,153.39,153.3,1.4053]
[1729142292753,20.04,153.39,153.3,7.3653]
[1729142293655,14.08,153.41,153.3,21.4453]
[1729142293852,5.96,153.4,153.32,14.08]
[1729142294048,5.96,153.4,153.34,14.08]
[1729142294250,5.98,153.42,153.34,14.08]
[1729142294649,3.2607,153.37,153.34,14.08]
[1729142294861,5.98,153.42,153.34,14.08]
[1729142295558,3.2606,153.37,153.34,14.08]
[1729142296560,3.2607,153.36,153.34,14.08]
[1729142298052,3.2607,153.36,153.32,14.08]
[1729142300665,3.2607,153.36,153.32,17.3416]
[1729142305367,5.98,153.42,153.32,14.08]
[1729142305570,3.2604,153.38,153.35,14.08]
[1729142305769,3.2604,153.38,153.34,3.2611]
[1729142305770,3.2604,153.38,153.37,9.02]
[1729142306065,3.2604,153.38,153.37,12.20592369]
[1729142306371,3.2604,153.38,153.37,11.39466417]
[1729142307771,3.2604,153.38,153.37,3.18592369]
[1729142307969,3.2605,153.37,153.36,9.02]
[1729142314772,3.2605,153.38,153.36,9.02]
[1729142319082,3.2605,153.38,153.37,9.02]
[1729142319286,3.2605,153.38,153.37,12.23483537]
[1729142326087,3.2598,153.41,153.37,12.23483537]
[1729142326284,3.2598,153.41,153.4,9.02]
[1729142327083,3.2598,153.41,153.4,12.31246634]
[1729142328793,9.02,153.44,153.39,9.02]
[1729142328993,3.2599,153.4,153.39,12.35475368]
[1729142331287,3.2599,153.4,153.39,3.33475368]
[1729142331483,3.2603,153.38,153.37,9.02]
[1729142331795,9.02,153.41,153.37,3.2962767]
[1729142332088,3.2605,153.37,153.36,9.02]
[1729142333990,5.68,153.45,153.36,12.2807]
[1729142334193,9.02,153.43,153.38,9.02]
[1729142334388,5.68,153.45,153.38,12.33356201]
[1729142334389,9.02,153.44,153.38,12.33356201]
[1729142335393,3.2601,153.39,153.38,12.33356201]
[1729142350418,3.2601,153.39,153.38,3.31356201]
[1729142350616,3.2601,153.39,153.37,9.02]
[1729142351213,3.2601,153.39,153.37,12.34594883]
[1729142355514,3.2601,153.39,153.38,9.02]
[1729142356219,6.5172,153.47,153.38,12.26398183]
[1729142356423,5.4,153.46,153.41,9.02]
[1729142356925,3.2595,153.42,153.41,9.02]
[1729142357125,3.2595,153.42,153.41,12.28941971]
[1729142357625,5.4,153.48,153.41,12.28941971]
[1729142357922,5.4,153.48,153.45,9.02]
[1729142358626,3.2586,153.46,153.45,12.28432881]
[1729142362427,3.2586,153.46,153.45,3.26432881]
[1729142362617,3.2596,153.42,153.39,5.4]
[1729142362816,3.2596,153.42,153.41,9.02]
[1729142369227,3.2594,153.43,153.41,9.02]
[1729142369429,9.02,153.47,153.41,9.02]
[1729142369834,3.2595,153.42,153.41,9.02]
[1729142371133,9.02,153.47,153.41,9.02]
[1729142371432,3.259,153.44,153.43,9.02]
[1729142371819,3.259,153.44,153.4,3.2599]
[1729142371820,3.2598,153.41,153.39,8.63737964]
[1729142372026,5.38,153.46,153.4,9.02]
[1729142372232,5.38,153.46,153.42,9.02]
[1729142372433,3.2593,153.43,153.42,9.02]
[1729142377625,3.2591,153.44,153.42,9.02]
[1729142377828,5.18,153.47,153.43,9.02]
[1729142378333,3.259,153.45,153.43,9.02]
[1729142380729,273.44,153.7,153.44,9.02]
[1729142380935,3.258,153.49,153.48,9.02]
[1729142381528,3.2583,153.48,153.46,9.02]
[1729142382430,3.2583,153.48,153.47,9.02]
[1729142382735,3.2583,153.48,153.47,12.22294103]
[1729142384035,3.2583,153.48,153.47,3.20294103]
[1729142384236,9.02,153.49,153.44,9.02]
[1729142384237,3.2588,153.45,153.44,9.02]
[1729142385242,5.18,153.52,153.44,9.02]
[1729142385537,3.2588,153.46,153.44,9.02]
[1729142386333,9.02,153.5,153.44,9.02]
[1729142386533,3.2588,153.45,153.44,9.02]
[1729142390834,3.259,153.44,153.43,9.02]
[1729142391038,9.02,153.46,153.39,3.23737964]
[1729142391241,9.02,153.46,153.4,9.02]
[1729142391437,9.02,153.46,153.4,12.21641462]
[1729142391841,3.2598,153.41,153.4,12.21641462]
[1729142396048,3.2598,153.41,153.4,3.19641462]
[1729142396245,9.02,153.45,153.39,9.02]
[1729142396447,3.26,153.4,153.39,12.29388581]
[1729142403955,3.2593,153.43,153.4,3.2598]
[1729142404250,14.06,153.46,153.41,9.02]
[1729142404654,3.2595,153.42,153.41,9.02]
[1729142405058,3.2595,153.42,153.41,12.30758011]
[1729142405752,3.2595,153.42,153.41,3.28758011]
[1729142405957,3.2595,153.42,153.39,3.26]
[1729142406259,3.2595,153.42,153.41,9.02]
[1729142406959,3.2595,153.42,153.41,12.34519542]
[1729142409256,3.2593,153.43,153.41,12.34519542]
[1729142409856,3.2595,153.42,153.41,12.34519542]
[1729142410266,14.06,153.47,153.41,12.34519542]
[1729142410461,3.2594,153.43,153.41,12.34519542]
[1729142411062,3.2595,153.42,153.41,12.34519542]
[1729142413070,3.2595,153.42,153.41,3.32519542]
[1729142413266,14.06,153.46,153.4,9.02]
[1729142413465,3.2597,153.41,153.4,9.02]
[1729142413768,3.2597,153.41,153.4,12.35018888]
[1729142415366,3.2597,153.41,153.4,3.33018888]
[1729142415568,3.2597,153.41,153.4,9.02]
[1729142415868,3.2597,153.41,153.4,12.35931805]
[1729142419280,3.2597,153.41,153.4,12.20693094]
[1729142422972,3.2597,153.41,153.4,3.18693094]
[1729142423174,9.02,153.44,153.37,3.2604]
[1729142423377,3.26,153.4,153.37,12.2804]
[1729142423873,3.26,153.4,153.37,15.53091956]
[1729142426280,3.26,153.4,153.38,3.2603]
[1729142426576,3.26,153.4,153.39,9.02]
[1729142428075,6.5161,153.49,153.39,9.02]
[1729142428283,9.02,153.47,153.41,9.02]
[1729142428781,3.2596,153.42,153.41,9.02]
[1729142429679,3.2597,153.41,153.4,9.02]
[1729142431076,9.02,153.45,153.4,9.02]
[1729142431273,5.04,153.44,153.4,9.02]
[1729142431877,5.04,153.44,153.4,12.28834183]
[1729142432077,3.2598,153.41,153.4,12.28834183]
[1729142450088,3.2598,153.41,153.4,3.26834183]
[1729142450295,9.02,153.41,153.32,9.056]
[1729142450495,4.92,153.4,153.34,9.02]
[1729142451092,4.92,153.4,153.34,12.281]
[1729142451093,3.2603,153.39,153.34,12.281]
[1729142451288,4.92,153.4,153.34,12.281]
[1729142452497,3.2607,153.37,153.34,12.281]
[1729142455797,4.92,153.4,153.32,4.136]
[1729142456103,9.02,153.37,153.32,2.7905]
[1729142456398,4.92,153.36,153.32,2.7905]
[1729142456899,4.92,153.36,153.29,3.20651692]
[1729142456900,13.94,153.36,153.29,3.20651692]
[1729142457100,9.02,153.35,153.29,9.02]
[1729142457293,9.02,153.35,153.29,3.23408002]
[1729142457294,3.2622,153.3,153.29,3.23408002]
[1729142457500,3.2622,153.3,153.28,9.02]
[1729142457700,3.2622,153.3,153.28,12.29485259]
[1729142458100,9.02,153.33,153.28,3.27485259]
[1729142458298,3.2622,153.29,153.27,11.9085]
[1729142458799,3.2622,153.29,153.27,15.11208296]
[1729142459902,3.2621,153.3,153.27,15.11208296]
[1729142461708,3.2621,153.3,153.27,18.37468296]
[1729142462101,3.2621,153.3,153.29,9.02]
[1729142466114,3.2604,153.38,153.29,12.2821]
[1729142466405,9.02,153.37,153.31,9.02]
[1729142466607,4.8,153.36,153.31,9.02]
[1729142466810,3.2616,153.32,153.31,9.02]
[1729142469411,3.2615,153.33,153.31,9.02]
[1729142470612,4.8,153.36,153.31,9.02]
[1729142470804,3.2616,153.32,153.31,9.02]
[1729142473004,3.2612,153.34,153.31,12.2817]
[1729142473209,70.44,153.41,153.33,9.02]
[1729142473414,6.5168,153.48,153.38,9.02]
[1729142473711,6.5168,153.48,153.38,12.2802]
[1729142473712,3.2597,153.41,153.38,12.2802]
[1729142474206,3.2597,153.42,153.38,15.47753926]
[1729142474517,9.02,153.44,153.4,9.02]
[1729142475310,4.8,153.47,153.4,9.02]
[1729142475512,3.2597,153.41,153.4,9.02]
[1729142476111,3.2599,153.4,153.38,12.21733926]
[1729142479116,3.2598,153.41,153.38,12.21733926]
[1729142479313,4.8,153.43,153.38,12.21733926]
[1729142479511,3.26,153.4,153.38,12.21733926]
[1729142479715,3.26,153.4,153.38,3.19733926]
[1729142479909,4.8,153.43,153.39,9.02]
[1729142480115,4.8,153.43,153.4,3.33268828]
[1729142480116,3.2595,153.42,153.4,3.33268828]
[1729142480417,9.02,153.45,153.39,9.02]
[1729142480619,4.8,153.44,153.39,9.02]
[1729142481011,3.2598,153.41,153.39,12.3027909]
[1729142481619,3.2596,153.42,153.39,15.5627909]
[1729142481812,3.2596,153.42,153.41,9.02]
[1729142482019,4.8,153.46,153.41,9.02]
[1729142482623,3.2594,153.43,153.41,9.02]
[1729142483716,3.2595,153.42,153.41,9.02]
[1729142488833,3.2599,153.4,153.39,3.2827909]
[1729142489132,3.2599,153.4,153.39,9.02]
[1729142489332,3.2599,153.4,153.39,12.20172137]
[1729142498539,3.2599,153.4,153.39,3.18172137]
[1729142498842,9.02,153.41,153.35,13.1356]
[1729142499243,9.02,153.41,153.35,16.47567965]
[1729142499648,3.2607,153.36,153.35,16.47567965]
[1729142501246,13.78,153.42,153.35,16.47567965]
[1729142501547,13.78,153.42,153.37,9.02]
[1729142502043,3.2605,153.38,153.37,9.02]
[1729142511256,13.78,153.42,153.36,9.02]
[1729142511551,3.2607,153.37,153.36,9.02]
[1729142511752,9.02,153.41,153.35,16.47567965]
[1729142512547,3.2607,153.36,153.35,6.01797965]
[1729142512749,3.2607,153.36,153.35,3.34007965]
[1729142512951,9.02,153.38,153.33,9.02]
[1729142513151,9.02,153.38,153.33,12.3300753]
[1729142513454,3.2612,153.34,153.33,12.3300753]
[1729142514455,3.2612,153.34,153.33,3.3100753]
[1729142514651,9.02,153.35,153.29,8.0221]
[1729142514848,9.02,153.35,153.29,4.76]
[1729142515054,9.02,153.35,153.29,9.02]
[1729142515261,4.76,153.34,153.29,9.02]
[1729142515855,13.78,153.34,153.29,9.02]
[1729142516553,13.78,153.34,153.27,13.1568]
[1729142516554,3.2624,153.28,153.27,13.1568]
[1729142517152,3.2624,153.28,153.27,11.7896]
[1729142517357,3.2624,153.28,153.25,8.0231]
[1729142517358,3.2628,153.27,153.26,9.02]
[1729142518155,3.2628,153.27,153.26,12.2832953]
[1729142519053,4.76,153.31,153.26,12.2832953]
[1729142519260,3.2625,153.28,153.27,9.02]
[1729142519959,3.2625,153.28,153.27,12.2917669]
[1729142522161,3.2625,153.28,153.27,3.2717669]
[1729142522355,13.78,153.31,153.26,9.02]
[1729142522555,3.2627,153.27,153.26,9.02]
[1729142522961,3.2627,153.27,153.26,12.20298864]
[1729142523457,3.2627,153.27,153.26,3.18298864]
[1729142523662,13.78,153.3,153.23,4.1418]
[1729142523866,3.2632,153.25,153.23,13.1618]
[1729142524260,3.2632,153.25,153.23,16.40027552]
[1729142524764,3.2633,153.24,153.23,15.01967552]
[1729142527170,3.2633,153.24,153.23,5.99967552]
[1729142527357,3.2633,153.24,153.23,3.23847552]
[1729142527562,9.02,153.27,153.21,9.02]
[1729142527761,9.02,153.27,153.21,12.34343936]
[1729142528263,6.5229,153.33,153.21,3.32343936]
[1729142528264,3.2637,153.22,153.21,3.32343936]
[1729142528461,13.78,153.24,153.19,2.7439]
[1729142528863,13.78,153.24,153.19,3.30450796]
[1729142529064,3.2644,153.19,153.18,9.02]
[1729142529258,4.76,153.24,153.14,4.76]
[1729142529464,13.78,153.24,153.18,9.02]
[1729142529664,13.78,153.24,153.18,12.2845]
[1729142530164,3.2641,153.21,153.19,3.19249631]
[1729142530569,13.78,153.24,153.19,3.19249631]
[1729142530770,9.02,153.23,153.19,3.19249631]
[1729142531167,9.02,153.21,153.13,3.2656]
[1729142531367,4.76,153.2,153.15,9.02]
[1729142531773,3.265,153.16,153.15,9.02]
[1729142532569,3.2649,153.17,153.15,9.02]
[1729142534168,3.2645,153.19,153.16,3.2649]
[1729142534370,3.2645,153.19,153.18,9.02]
[1729142540579,3.264,153.21,153.19,3.2643]
[1729142540779,4.76,153.23,153.2,3.29643723]
[1729142541788,3.2639,153.21,153.2,3.29643723]
[1729142546186,3.2647,153.18,153.17,9.02]
[1729142546991,3.2645,153.19,153.17,9.02]
[1729142548687,3.2645,153.19,153.16,3.265]
[1729142548990,3.2645,153.19,153.17,9.02]
[1729142551693,9.02,153.23,153.18,9.02]
[1729142551993,3.2641,153.21,153.2,9.02]
[1729142552291,3.2641,153.21,153.2,12.21727652]
[1729142566205,3.2641,153.21,153.2,3.19727652]
[1729142566400,3.2641,153.21,153.19,9.02]
[1729142567008,3.2641,153.2,153.19,12.26061132]
[1729142567603,4.76,153.23,153.19,12.26061132]
[1729142567806,4.76,153.23,153.2,9.02]
[1729142568395,4.76,153.23,153.2,12.32232536]
[1729142569407,3.2639,153.21,153.2,12.32232536]
[1729142571104,9.02,153.27,153.2,12.32232536]
[1729142571310,6.5247,153.29,153.2,12.32232536]
[1729142571311,4.76,153.26,153.22,9.02]
[1729142572005,4.76,153.26,153.22,12.34310882]
[1729142572509,3.2636,153.23,153.22,12.34310882]
[1729142574810,3.2636,153.23,153.22,3.32310882]
[1729142575011,4.76,153.26,153.21,11.6898]
[1729142575199,3.2637,153.22,153.21,11.6898]
[1729142575507,3.2637,153.22,153.21,14.9602367]
[1729142576011,3.2637,153.22,153.21,5.9402367]
[1729142576409,3.2637,153.22,153.21,14.9602367]
[1729142597926,3.2637,153.22,153.21,5.9402367]
[1729142598125,3.2637,153.22,153.21,14.9602367]
[1729142598322,70.52,153.33,153.21,19.7202367]
[1729142598625,70.52,153.33,153.27,9.02]
[1729142598626,4.76,153.32,153.27,9.02]
[1729142599324,1.0768,153.35,153.3,9.02]
[1729142599527,4.76,153.32,153.3,9.02]
[1729142600322,4.76,153.32,153.3,12.22770784]
[1729142600628,3.2618,153.31,153.3,12.22770784]
[1729142600820,3.2618,153.31,153.3,3.20770784]
[1729142608335,3.2628,153.27,153.24,3.2631]
[1729142608533,9.02,153.31,153.26,9.02]
[1729142609348,3.2627,153.27,153.26,9.02]
[1729142610848,3.2623,153.29,153.27,3.2626]
[1729142611145,3.2623,153.29,153.28,9.02]
[1729142620252,9.02,153.31,153.21,5.9402367]
[1729142620458,3.263,153.26,153.24,9.02]
[1729142620646,9.02,153.3,153.24,9.02]
[1729142621249,3.2631,153.25,153.24,9.02]
[1729142621659,9.02,153.27,153.21,5.9402367]
[1729142621856,3.2636,153.23,153.22,9.02]
[1729142623558,3.2636,153.23,153.21,5.9402367]
[1729142623758,3.2636,153.23,153.22,9.02]
[1729142632361,9.02,153.27,153.21,12.2904367]
[1729142632559,3.2637,153.22,153.21,12.2904367]
[1729142632960,3.2637,153.22,153.21,3.2704367]
[1729142633255,3.2641,153.21,153.19,9.02]
[1729142633657,3.2641,153.21,153.19,12.21187102]
[1729142635361,3.2641,153.2,153.19,12.21187102]
[1729142638560,4.76,153.24,153.19,12.21187102]
[1729142638561,3.264,153.21,153.19,12.21187102]
[1729142641565,3.2641,153.21,153.19,12.21187102]
[1729142642266,3.264,153.21,153.19,12.21187102]
[1729142642963,4.76,153.24,153.19,3.19187102]
[1729142643267,4.76,153.24,153.19,9.02]
[1729142643461,4.76,153.24,153.21,9.02]
[1729142643766,4.76,153.26,153.22,9.02]
[1729142644264,3.2633,153.25,153.22,12.2836]
[1729142644464,4.76,153.26,153.22,9.02]
[1729142645053,3.2635,153.24,153.22,9.02]
[1729142647867,1.3682,153.31,153.23,9.02]
[1729142648071,4.76,153.31,153.27,9.02]
[1729142648262,4.76,153.31,153.27,12.34311879]
[1729142648670,4.76,153.31,153.28,9.02]
[1729142649170,3.262,153.3,153.28,12.2824]
[1729142649365,3.262,153.3,153.29,3.19352369]
[1729142650069,70.5,153.34,153.28,12.2824]
[1729142650259,1.4465,153.38,153.33,9.02]
[1729142650460,9.02,153.4,153.34,9.02]
[1729142650663,3.2605,153.38,153.36,9.02]
[1729142650968,4.76,153.4,153.37,9.02]
[1729142651368,3.2602,153.39,153.37,9.02]
[1729142651670,3.2602,153.39,153.37,12.35454363]
[1729142652072,4.76,153.41,153.37,12.35454363]
[1729142653371,3.2602,153.39,153.37,12.35454363]
[1729142653567,13.78,153.41,153.36,9.02]
[1729142654471,3.2606,153.37,153.36,9.02]
[1729142655073,3.2606,153.37,153.34,9.02]
[1729142658771,3.2608,153.36,153.34,9.02]
[1729142659581,13.78,153.41,153.34,9.02]
[1729142659781,3.2606,153.37,153.34,9.02]
[1729142660478,3.2609,153.36,153.34,9.02]
[1729142661780,3.2606,153.37,153.34,9.02]
[1729142661977,3.2606,153.37,153.36,9.02]
[1729142664585,13.78,153.41,153.33,6.1073]
[1729142664787,3.2608,153.36,153.34,9.02]
[1729142665490,3.261,153.35,153.34,9.02]
[1729142669395,3.261,153.35,153.33,9.02]
[1729142669987,9.02,153.39,153.33,9.02]
[1729142670189,3.2612,153.34,153.33,9.02]
[1729142671397,3.2612,153.34,153.31,3.2617]
[1729142671598,3.2612,153.34,153.33,9.02]
[1729142674599,3.2612,153.34,153.3,2.673]
[1729142674895,3.2612,153.34,153.33,9.02]
[1729142675298,3.2616,153.33,153.32,9.02]
[1729142676891,13.76,153.37,153.3,2.673]
[1729142677096,13.76,153.37,153.3,1.3203]
[1729142677302,13.76,153.37,153.3,10.3403]
[1729142677503,3.2617,153.32,153.3,10.3403]
[1729142677703,9.02,153.35,153.3,9.02]
[1729142678099,3.262,153.3,153.29,4.61570646]
[1729142678397,3.262,153.3,153.29,3.18960646]
[1729142678598,9.02,153.32,153.27,9.02]
[1729142678802,9.02,153.32,153.27,12.2154526]
[1729142679504,3.2624,153.29,153.27,12.2154526]
[1729142680807,9.02,153.32,153.27,12.2154526]
[1729142681103,3.2624,153.29,153.27,12.2154526]
[1729142681603,3.2619,153.31,153.28,9.02]
[1729142681800,4.74,153.33,153.28,9.02]
[1729142682302,4.74,153.33,153.28,12.28133752]
[1729142682502,9.02,153.36,153.3,9.02]
[1729142682703,4.74,153.35,153.31,9.02]
[1729142682903,4.74,153.35,153.32,3.32985986]
[1729142683104,3.2614,153.33,153.32,3.32985986]
[1729142685407,3.2616,153.32,153.31,9.02]
[1729142685804,3.2616,153.32,153.31,12.33507165]
[1729142686610,9.02,153.34,153.28,9.02]
[1729142686807,3.2622,153.29,153.28,12.25425194]
[1729142687709,9.02,153.34,153.28,12.25425194]
[1729142688009,3.2621,153.3,153.28,12.25425194]
[1729142689214,3.2621,153.3,153.29,9.02]
[1729142689415,13.76,153.35,153.29,9.02]
[1729142689706,4.74,153.35,153.31,9.02]
[1729142689913,3.2616,153.32,153.31,9.02]
[1729142690213,3.2616,153.32,153.31,12.24556068]
[1729142700618,3.2615,153.33,153.31,12.24556068]
[1729142701018,4.74,153.36,153.31,12.24556068]
[1729142702428,3.2616,153.32,153.31,12.24556068]
[1729142704826,3.2616,153.32,153.31,3.22556068]
[1729142705027,3.2616,153.32,153.3,9.02]
[1729142705322,3.2616,153.32,153.3,12.27557725]
[1729142707528,3.2618,153.31,153.3,12.27557725]
[1729142709936,3.2618,153.31,153.3,3.25557725]
[1729142710134,9.02,153.34,153.28,9.02]
[1729142710336,3.2622,153.29,153.28,3.31431273]
[1729142713334,3.2622,153.29,153.27,9.02]
[1729142713633,3.2622,153.29,153.28,9.02]
[1729142716432,3.2622,153.29,153.27,3.33366666]
[1729142716433,3.2624,153.28,153.27,3.33366666]
[1729142716634,4.74,153.33,153.27,9.02]
[1729142716843,13.76,153.33,153.28,9.02]
[1729142717534,13.76,153.33,153.28,12.32114574]
[1729142717738,3.2622,153.29,153.28,12.32114574]
[1729142718135,3.2622,153.3,153.28,12.32114574]
[1729142719341,3.2622,153.29,153.28,12.32114574]
[1729142721438,3.2622,153.29,153.28,3.30114574]
[1729142721641,3.2622,153.29,153.27,9.02]
[1729142722241,3.2622,153.29,153.27,12.34257772]
[1729142728043,13.76,153.33,153.27,3.32257772]
[1729142728345,3.2624,153.28,153.27,9.02]
[1729142728545,3.2624,153.28,153.27,12.26903445]
[1729142732350,3.2635,153.24,153.22,9.02]
[1729142733848,3.2635,153.24,153.23,9.02]
[1729142737753,4.74,153.28,153.23,12.2834]
[1729142737956,4.74,153.28,153.25,9.02]
[1729142738652,3.2629,153.26,153.25,9.02]
[1729142740156,4.74,153.28,153.24,9.02]
[1729142740456,3.2635,153.24,153.22,9.02]
[1729142741057,13.76,153.28,153.22,9.02]
[1729142741556,3.2635,153.23,153.22,9.02]
[1729142741949,9.02,153.26,153.2,4.6516]
[1729142742157,9.02,153.26,153.21,9.02]
[1729142742851,3.2637,153.23,153.21,9.02]
[1729142743054,3.2637,153.23,153.22,9.02]
[1729142755970,3.2637,153.23,153.21,9.02]
[1729142756169,3.2637,153.23,153.2,4.6516]
[1729142756370,3.2637,153.23,153.21,9.02]
[1729142760566,4.74,153.28,153.22,9.02]
[1729142760773,3.263,153.26,153.23,9.02]